bitfinex-derivatives/quotes_BTCF0:USTF0_20241023
["timestamp","ask_amount","ask_price","bid_price","bid_amount"]
[1729709898679,0.24574,66084.0,66083.0,0.18883073]
[1729709901274,0.00229,66085.0,66083.0,0.18883073]
[1729709901275,0.00229,66085.0,66084.0,0.07574]
[1729709901475,0.00229,66085.0,66084.0,0.49276861]
[1729709901680,0.1538,66097.0,66084.0,1.07182663]
[1729709901977,0.229525,66097.0,66096.0,0.075726]
[1729709902171,0.229525,66097.0,66096.0,0.18881573]
[1729709902587,0.229525,66097.0,66096.0,0.18763407]
[1729709902892,0.229525,66097.0,66096.0,0.18761795]
[1729709903986,0.229525,66097.0,66096.0,0.075726]
[1729709904182,0.1538,66097.0,66096.0,0.075726]
[1729709906985,0.1538,66097.0,66096.0,0.10361825]
[1729709910184,0.229525,66097.0,66096.0,0.10361825]
[1729709910893,0.25878982,66097.0,66096.0,0.10361825]
[1729709911392,0.18306482,66097.0,66096.0,0.10361825]
[1729709912091,0.25878982,66097.0,66096.0,0.10361825]
[1729709912981,0.18306482,66097.0,66068.0,0.075758]
[1729709913192,0.17,66086.0,66076.0,0.31204]
[1729709913390,0.02926659,66085.0,66084.0,0.07574]
[1729709913587,0.02926659,66085.0,66084.0,0.24574]
[1729709914292,0.07573,66093.0,66084.0,0.24574]
[1729709914590,0.07573,66093.0,66092.0,0.075731]
[1729709914784,0.10499583,66093.0,66092.0,0.075731]
[1729709916282,0.075734,66090.0,66089.0,0.075734]
[1729709916589,0.10499983,66090.0,66089.0,0.075734]
[1729709917492,0.02926583,66090.0,66089.0,0.075734]
[1729709917690,0.392826,66097.0,66088.0,0.17]
[1729709917896,0.075729,66094.0,66088.0,0.19733293]
[1729709918083,0.07573,66094.0,66093.0,0.07573]
[1729709918988,0.07573,66094.0,66093.0,0.1203795]
[1729709919186,0.07573,66094.0,66093.0,0.07573]
[1729709919380,0.3171,66097.0,66088.0,0.19733293]
[1729709919381,0.075731,66092.0,66090.0,0.075733]
[1729709919590,0.075731,66092.0,66091.0,0.075732]
[1729709919991,0.075731,66092.0,66091.0,0.12037838]
[1729709920588,0.075731,66092.0,66091.0,0.075732]
[1729709920589,0.03782663,66092.0,66091.0,0.075732]
[1729709920799,0.11,66093.0,66088.0,0.1626006]
[1729709921089,0.18573,66093.0,66092.0,0.04463523]
[1729709921495,0.18573,66093.0,66092.0,0.075731]
[1729709921702,0.18573,66093.0,66092.0,0.12038248]
[1729709922197,0.18573,66093.0,66092.0,0.075731]
[1729709922393,0.07573,66093.0,66092.0,0.075731]
[1729709923295,0.4271,66097.0,66091.0,0.11]
[1729709923503,0.1538,66097.0,66096.0,0.185726]
[1729709923700,0.1538,66097.0,66096.0,0.075726]
[1729709923701,0.2638,66097.0,66096.0,0.075726]
[1729709924001,0.339525,66097.0,66096.0,0.075726]
[1729709924293,0.229525,66097.0,66096.0,0.075726]
[1729709925390,0.229525,66097.0,66096.0,0.12040184]
[1729709925994,0.34239826,66097.0,66096.0,0.075726]
[1729709926402,0.47821718,66097.0,66096.0,0.075726]
[1729709927101,0.34239878,66097.0,66096.0,0.075726]
[1729709927295,0.2486927,66097.0,66096.0,0.075726]
[1729709927495,0.06636837,66097.0,66096.0,0.075726]
[1729709927795,0.06636837,66097.0,66095.0,0.02713015]
[1729709927995,0.06636837,66096.0,66095.0,0.075728]
[1729709929397,0.31209437,66096.0,66093.0,0.0272922]
[1729709929593,0.075733,66090.0,66089.0,0.075734]
[1729709929796,0.075737,66087.0,66086.0,0.075738]
[1729709929999,0.10500333,66087.0,66086.0,0.075738]
[1729709930403,0.02926633,66087.0,66086.0,0.075738]
[1729709930798,0.02926691,66087.0,66085.0,0.075739]
[1729709930998,0.02926691,66086.0,66085.0,0.075739]
[1729709932213,0.06636952,66086.0,66084.0,0.14204]
[1729709932506,0.06636918,66085.0,66084.0,0.07574]
[1729709932694,0.17,66093.0,66084.0,0.14204]
[1729709932898,0.02926678,66092.0,66084.0,0.14204]
[1729709933090,0.245731,66093.0,66090.0,0.075733]
[1729709933293,0.17,66094.0,66091.0,0.1146679]
[1729709933507,0.24573,66094.0,66092.0,0.1146679]
[1729709933700,0.24573,66094.0,66093.0,0.1146679]
[1729709933891,0.24573,66094.0,66093.0,0.1903979]
[1729709934494,0.17,66094.0,66093.0,0.1903979]
[1729709935903,0.11693229,66094.0,66093.0,0.27976968]
[1729709936202,0.11693229,66094.0,66093.0,0.1903979]
[1729709936801,0.17,66098.0,66093.0,0.1146679]
[1729709937005,0.1642,66099.0,66098.0,0.075724]
[1729709937305,0.1642,66099.0,66098.0,0.1903919]
[1729709937503,0.1642,66099.0,66098.0,0.18982991]
[1729709939801,0.3342,66099.0,66098.0,0.18982991]
[1729709940802,0.3342,66099.0,66098.0,0.21778581]
[1729709941006,0.3342,66099.0,66098.0,0.1036799]
[1729709941201,0.3342,66099.0,66098.0,0.1633853]
[1729709944901,0.3342,66099.0,66098.0,0.1036799]
[1729709946707,0.3342,66099.0,66098.0,0.1633853]
[1729709947407,0.3342,66099.0,66098.0,0.1036799]
[1729709947605,0.3342,66099.0,66098.0,0.1633853]
[1729709947812,0.3342,66099.0,66098.0,0.1036799]
[1729709948023,0.4470219,66099.0,66098.0,0.1036799]
[1729709948511,0.44702191,66099.0,66098.0,0.1036799]
[1729709948703,0.44702191,66099.0,66091.0,0.13592]
[1729709948704,0.37129891,66099.0,66084.0,0.00226944]
[1729709949012,0.17,66086.0,66085.0,0.211659]
[1729709949200,0.17,66089.0,66085.0,0.211659]
[1729709949406,0.17,66089.0,66088.0,0.075736]
[1729709949706,0.28283619,66089.0,66088.0,0.075736]
[1729709949904,0.20710228,66089.0,66088.0,0.075736]
[1729709950405,0.03710228,66089.0,66088.0,0.075736]
[1729709950907,0.03710218,66089.0,66088.0,0.075736]
[1729709951707,0.17,66093.0,66085.0,0.17]
[1729709951708,0.17,66093.0,66092.0,0.075731]
[1729709951906,0.20710221,66093.0,66092.0,0.075731]
[1729709953715,0.20710106,66093.0,66092.0,0.075731]
[1729709954312,0.28283106,66093.0,66092.0,0.075731]
[1729709954822,0.20710106,66093.0,66092.0,0.075731]
[1729709955011,0.20710106,66093.0,66083.0,0.2992]
[1729709955206,0.03710106,66092.0,66086.0,0.075737]
[1729709955615,0.17,66088.0,66087.0,0.075737]
[1729709955809,0.17,66092.0,66088.0,0.075735]
[1729709956115,0.17,66092.0,66090.0,0.08937178]
[1729709956316,0.075727,66096.0,66091.0,0.11546262]
[1729709956619,0.11,66092.0,66090.0,0.08937178]
[1729709956819,0.1642,66099.0,66091.0,0.19119462]
[1729709957116,0.075725,66097.0,66096.0,0.07456199]
[1729709957317,0.1642,66099.0,66096.0,0.19002461]
[1729709957519,0.11,66097.0,66096.0,0.07456172]
[1729709957708,0.11,66097.0,66096.0,0.11545694]
[1729709958206,0.185725,66097.0,66096.0,0.11545966]
[1729709958405,0.1642,66099.0,66096.0,0.07456556]
[1729709958711,0.1642,66099.0,66098.0,0.07456556]
[1729709958910,0.2742,66099.0,66098.0,0.19002484]
[1729709959218,0.2742,66099.0,66098.0,0.11545928]
[1729709959811,0.1642,66099.0,66098.0,0.11545928]
[1729709960119,0.45022,66102.0,66101.0,0.075721]
[1729709960308,0.44946,66102.0,66101.0,0.30118028]
[1729709961906,0.44946,66102.0,66101.0,0.22545928]
[1729709962112,0.44946,66102.0,66101.0,0.11545928]
[1729709963126,0.44946,66102.0,66101.0,0.185721]
[1729709963127,0.48655587,66102.0,66101.0,0.185721]
[1729709964525,0.48655587,66102.0,66101.0,0.11]
[1729709964713,0.56227587,66102.0,66101.0,0.11]
[1729709966214,0.52518,66102.0,66101.0,0.11]
[1729709967121,0.56227644,66102.0,66101.0,0.11]
[1729709967822,0.48655644,66102.0,66100.0,0.075722]
[1729709968120,0.11281744,66101.0,66100.0,0.075722]
[1729709968312,0.11281744,66101.0,66100.0,0.185722]
[1729709968717,0.03709644,66101.0,66100.0,0.185722]
[1729709970916,0.08359332,66101.0,66100.0,0.185722]
[1729709971117,0.45022,66102.0,66100.0,0.22543955]
[1729709971118,0.41232127,66102.0,66100.0,0.22543955]
[1729709971318,0.41156127,66102.0,66101.0,0.2656243]
[1729709971518,0.15359408,66107.0,66101.0,0.1899033]
[1729709971713,0.22930808,66107.0,66106.0,0.16956777]
[1729709971919,0.22930808,66107.0,66106.0,0.11]
[1729709972513,0.07572,66102.0,66100.0,0.07446375]
[1729709972719,0.07572,66102.0,66101.0,0.07446375]
[1729709973317,0.07572,66102.0,66101.0,0.11543949]
[1729709973517,0.07572,66102.0,66101.0,0.18988892]
[1729709973720,0.075721,66101.0,66100.0,0.07444943]
[1729709974023,0.075721,66101.0,66100.0,0.11544097]
[1729709974829,0.075721,66101.0,66100.0,0.19116297]
[1729709975022,0.075721,66101.0,66100.0,0.30116297]
[1729709975421,0.11,66103.0,66102.0,0.07572]
[1729709975618,0.075718,66104.0,66103.0,0.075717]
[1729709976527,0.07572,66102.0,66101.0,0.07444192]
[1729709977217,0.07572,66102.0,66101.0,0.15016292]
[1729709977926,0.07572,66102.0,66101.0,0.07444192]
[1729709978131,0.03709575,66102.0,66098.0,0.02778308]
[1729709978431,0.075724,66099.0,66095.0,0.11]
[1729709978627,0.03709575,66098.0,66095.0,0.11]
[1729709979122,0.03709575,66098.0,66095.0,0.13713015]
[1729709979521,0.03709575,66098.0,66097.0,0.185725]
[1729709979731,0.03709575,66099.0,66097.0,0.11]
[1729709980038,0.03709575,66098.0,66097.0,0.185725]
[1729709980333,0.03709531,66098.0,66097.0,0.185725]
[1729709981432,0.03709493,66098.0,66097.0,0.185725]
[1729709982823,0.13619187,66099.0,66098.0,0.075724]
[1729709983025,0.18268788,66099.0,66098.0,0.185724]
[1729709983225,0.08359097,66099.0,66098.0,0.185724]
[1729709983632,0.21978284,66099.0,66098.0,0.185724]
[1729709985335,0.08359097,66099.0,66098.0,0.185724]
[1729709986124,0.21981491,66099.0,66098.0,0.185724]
[1729709986331,0.13622394,66099.0,66098.0,0.30116247]
[1729709988440,0.13622394,66099.0,66098.0,0.39058636]
[1729709988732,0.13622394,66099.0,66098.0,0.39061374]
[1729709989334,0.13622394,66099.0,66098.0,0.30116247]
[1729709990040,0.07572,66102.0,66098.0,0.22543847]
[1729709990348,0.07572,66102.0,66101.0,0.075721]
[1729709990641,0.07572,66102.0,66101.0,0.19115947]
[1729709991039,0.07572,66102.0,66101.0,0.19115888]
[1729709991740,0.07572,66102.0,66101.0,0.28066446]
[1729709991939,0.07572,66102.0,66101.0,0.19115888]
[1729709993234,0.07572,66102.0,66101.0,0.075721]
[1729709994443,0.075722,66100.0,66099.0,0.075722]
[1729709994644,0.185722,66100.0,66099.0,0.075722]
[1729709995241,0.11,66100.0,66099.0,0.075722]
[1729710000238,0.11,66100.0,66095.0,0.11]
[1729710000239,0.11,66100.0,66095.0,0.07460177]
[1729710000440,0.11,66102.0,66093.0,0.07460177]
[1729710000441,0.075729,66094.0,66093.0,0.07460177]
[1729710000751,0.075737,66087.0,66086.0,0.02793293]
[1729710000935,0.075744,66081.0,66078.0,0.16525258]
[1729710001239,0.45392,66095.0,66077.0,0.001]
[1729710001240,0.08361896,66080.0,66077.0,0.02666958]
[1729710001441,0.36974842,66086.0,66080.0,0.075745]
[1729710001442,0.15135991,66081.0,66080.0,0.075745]
[1729710001647,0.0836124,66081.0,66080.0,0.075745]
[1729710001947,0.08361044,66081.0,66080.0,0.075745]
[1729710002253,0.03710447,66081.0,66080.0,0.245745]
[1729710002452,0.03710447,66081.0,66080.0,0.699745]
[1729710003248,0.15135991,66093.0,66082.0,0.075742]
[1729710003449,0.28758152,66104.0,66092.0,0.17]
[1729710003653,0.21193661,66106.0,66103.0,0.245718]
[1729710003946,0.04649663,66105.0,66103.0,0.17]
[1729710004147,0.075715,66106.0,66093.0,0.56233]
[1729710004148,0.075715,66106.0,66105.0,0.075716]
[1729710004355,0.12221164,66106.0,66105.0,0.075716]
[1729710004855,0.12221164,66106.0,66102.0,0.075719]
[1729710005042,0.04649664,66105.0,66102.0,0.075719]
[1729710005247,0.075715,66106.0,66102.0,0.075719]
[1729710005645,0.04649612,66105.0,66102.0,0.075719]
[1729710005852,0.075715,66106.0,66102.0,0.075719]
[1729710006051,0.04649627,66105.0,66102.0,0.075719]
[1729710006243,0.04649627,66104.0,66102.0,0.075719]
[1729710006447,0.04649627,66103.0,66102.0,0.075719]
[1729710007150,0.13613495,66103.0,66102.0,0.075719]
[1729710007352,0.18263122,66103.0,66102.0,0.075719]
[1729710007860,0.13613495,66103.0,66102.0,0.075719]
[1729710008058,0.13613495,66103.0,66102.0,0.10313745]
[1729710008256,0.32135991,66108.0,66106.0,0.075714]
[1729710008257,0.15135991,66108.0,66106.0,0.075714]
[1729710008561,0.15135991,66108.0,66107.0,0.36115011]
[1729710008961,0.15135991,66108.0,66107.0,0.50164169]
[1729710009554,0.15135991,66108.0,66107.0,0.66718244]
[1729710009761,0.15135991,66108.0,66107.0,0.49718244]
[1729710009957,0.15135991,66108.0,66107.0,0.66718244]
[1729710010162,0.15135991,66108.0,66107.0,0.78608045]
[1729710010359,0.1563,66118.0,66115.0,0.075704]
[1729710010559,0.1563,66118.0,66117.0,0.17]
[1729710010758,0.1563,66118.0,66117.0,0.28543611]
[1729710011562,0.1563,66118.0,66117.0,0.11543611]
[1729710012163,0.232001,66118.0,66117.0,0.11543611]
[1729710012959,0.232001,66118.0,66117.0,0.14230397]
[1729710013265,0.1563,66118.0,66117.0,0.31230397]
[1729710014368,0.1563,66118.0,66117.0,0.14230397]
[1729710015366,0.232001,66118.0,66117.0,0.14230397]
[1729710016163,0.1941125,66118.0,66117.0,0.14230397]
[1729710016366,0.14106937,66118.0,66117.0,0.02686786]
[1729710016567,0.14106937,66118.0,66115.0,0.075704]
[1729710021065,0.14106937,66118.0,66117.0,0.17]
[1729710023373,0.22463804,66118.0,66117.0,0.17]
[1729710023869,0.075715,66106.0,66100.0,0.13596]
[1729710024067,0.08356958,66105.0,66104.0,0.075717]
[1729710024263,0.15081037,66105.0,66104.0,0.075717]
[1729710024465,0.23437995,66105.0,66104.0,0.075717]
[1729710024670,0.08356958,66105.0,66104.0,0.075717]
[1729710024871,0.15081037,66106.0,66104.0,0.075717]
[1729710025066,0.08356958,66105.0,66104.0,0.245717]
[1729710025268,0.15081037,66106.0,66105.0,0.075716]
[1729710025469,0.15081037,66107.0,66106.0,0.075715]
[1729710025669,0.08357725,66107.0,66106.0,0.075715]
[1729710026076,0.03708887,66107.0,66106.0,0.075715]
[1729710026269,0.13571829,66108.0,66107.0,0.075714]
[1729710026582,0.08357285,66108.0,66107.0,0.245714]
[1729710026878,0.08357234,66108.0,66107.0,0.245714]
[1729710027075,0.08357234,66108.0,66107.0,0.17]
[1729710027768,0.08357234,66108.0,66107.0,0.245714]
[1729710027980,0.03708669,66108.0,66107.0,0.245714]
[1729710029274,0.13573046,66110.0,66109.0,0.075712]
[1729710029465,0.15081037,66110.0,66109.0,0.075712]
[1729710030771,0.15081037,66111.0,66110.0,0.07571]
[1729710030977,0.15081037,66111.0,66110.0,0.24571]
[1729710031175,0.16645673,66115.0,66110.0,0.24571]
[1729710031176,0.16645673,66115.0,66111.0,0.45376]
[1729710031371,0.16645673,66119.0,66114.0,0.245706]
[1729710031678,0.16645673,66119.0,66118.0,0.245701]
[1729710031977,0.16645673,66119.0,66118.0,0.81481643]
[1729710032677,0.16645673,66119.0,66118.0,0.95525628]
[1729710033579,0.16645673,66119.0,66118.0,0.98163371]
[1729710034783,0.06100001,66119.0,66118.0,0.98163239]
[1729710034988,0.06100001,66119.0,66118.0,0.84119386]
[1729710035372,0.41111,66133.0,66118.0,0.9816322]
[1729710035672,0.41111,66133.0,66132.0,0.245685]
[1729710036474,0.41111,66133.0,66132.0,0.075685]
[1729710038583,0.45758103,66133.0,66132.0,0.075685]
[1729710039082,0.45758103,66133.0,66132.0,0.245685]
[1729710040991,0.45758242,66133.0,66132.0,0.245685]
[1729710041786,0.60850231,66133.0,66132.0,0.245685]
[1729710042178,0.60848132,66133.0,66132.0,0.075685]
[1729710042487,0.45758242,66133.0,66132.0,0.216525]
[1729710043380,0.608465,66133.0,66132.0,0.24363769]
[1729710043778,0.608465,66133.0,66132.0,0.41363769]
[1729710043779,0.45758242,66133.0,66132.0,0.41363769]
[1729710044980,0.60845489,66133.0,66132.0,0.41363769]
[1729710045293,0.45758242,66133.0,66132.0,0.41363769]
[1729710046185,0.33697097,66141.0,66132.0,1.63727769]
[1729710046186,0.16597097,66141.0,66132.0,1.63727769]
[1729710046386,0.06212577,66160.0,66132.0,1.63727769]
[1729710046387,0.15084641,66147.0,66146.0,0.075669]
[1729710046592,0.1658,66160.0,66150.0,0.075665]
[1729710046778,0.241453,66160.0,66159.0,0.17]
[1729710046979,0.241453,66160.0,66159.0,0.31084]
[1729710047179,0.1658,66160.0,66159.0,0.386494]
[1729710047389,0.3335,66161.0,66160.0,0.075653]
[1729710047390,0.00076,66161.0,66160.0,0.075653]
[1729710047782,0.00076,66161.0,66160.0,0.216493]
[1729710048180,0.00226768,66169.0,66159.0,0.17]
[1729710048181,0.00226768,66169.0,66168.0,0.075644]
[1729710048389,0.075643,66169.0,66168.0,0.31084]
[1729710048578,0.075641,66171.0,66168.0,0.31084]
[1729710048785,0.1688,66170.0,66168.0,0.31084]
[1729710049182,0.1562,66178.0,66168.0,0.33794808]
[1729710049383,0.1562,66178.0,66174.0,0.17]
[1729710049588,0.231833,66178.0,66175.0,0.14084]
[1729710049887,0.1562,66178.0,66174.0,0.17]
[1729710050086,0.075636,66175.0,66172.0,0.1408]
[1729710050480,0.075638,66174.0,66171.0,0.17]
[1729710050792,0.1562,66178.0,66168.0,0.02710808]
[1729710050793,0.075642,66170.0,66168.0,0.02710808]
[1729710051091,0.1562,66178.0,66167.0,0.17]
[1729710051285,0.075643,66169.0,66168.0,0.1408]
[1729710051486,0.075644,66168.0,66167.0,0.17]
[1729710051685,0.17,66169.0,66163.0,0.17]
[1729710051986,0.075648,66165.0,66164.0,0.1408]
[1729710052185,0.1678,66168.0,66164.0,0.17]
[1729710052387,0.1678,66168.0,66167.0,0.17]
[1729710053684,0.1678,66168.0,66164.0,0.17]
[1729710053884,0.413444,66168.0,66164.0,0.1408]
[1729710054190,0.075645,66167.0,66160.0,0.17]
[1729710054393,0.17,66167.0,66160.0,0.17]
[1729710054593,0.17,66164.0,66159.0,0.075654]
[1729710054890,0.1642,66163.0,66160.0,0.3108]
[1729710055090,0.1642,66163.0,66161.0,0.1408]
[1729710055289,0.1642,66163.0,66162.0,0.075651]
[1729710056887,0.1594,66166.0,66165.0,0.075648]
[1729710057093,0.1678,66168.0,66167.0,0.075645]
[1729710058480,0.1642,66172.0,66166.0,0.13656]
[1729710058481,0.1642,66172.0,66171.0,0.075641]
[1729710058681,0.1642,66172.0,66171.0,0.245641]
[1729710059289,0.00226754,66177.0,66176.0,0.075635]
[1729710059494,0.00226754,66177.0,66176.0,0.245635]
[1729710059988,0.075625,66185.0,66179.0,0.075631]
[1729710060190,0.46754641,66190.0,66178.0,0.13656]
[1729710060191,0.17,66183.0,66178.0,0.13656]
[1729710060394,0.075628,66182.0,66178.0,0.075632]
[1729710060696,0.075624,66186.0,66180.0,0.24563]
[1729710060892,0.075624,66186.0,66177.0,0.13656]
[1729710060893,0.07562,66189.0,66185.0,0.17]
[1729710061087,0.07562,66189.0,66185.0,0.245625]
[1729710061288,0.07562,66189.0,66186.0,0.075623]
[1729710061692,0.3167,66190.0,66185.0,0.17]
[1729710061889,0.3167,66190.0,66177.0,0.13656]
[1729710061890,0.1571,66190.0,66189.0,0.07562]
[1729710062085,0.1571,66190.0,66189.0,0.21218]
[1729710062286,0.1571,66190.0,66185.0,0.02699987]
[1729710062287,0.1571,66190.0,66185.0,0.19699987]
[1729710062493,0.245623,66186.0,66185.0,0.075625]
[1729710062690,0.17,66186.0,66185.0,0.075625]
[1729710062998,0.1598,66189.0,66188.0,0.075621]
[1729710063294,0.075621,66188.0,66183.0,0.02728875]
[1729710063504,0.075608,66200.0,66195.0,0.075612]
[1729710063684,0.075612,66196.0,66194.0,0.075614]
[1729710063887,0.17,66195.0,66187.0,0.17]
[1729710064192,0.17,66195.0,66189.0,0.07562]
[1729710064493,0.075611,66198.0,66189.0,0.17]
[1729710064494,0.17,66198.0,66189.0,0.17]
[1729710064697,0.1633,66194.0,66193.0,0.075616]
[1729710064890,0.1633,66194.0,66189.0,0.17]
[1729710065092,0.1633,66194.0,66190.0,0.13652]
[1729710065288,0.1633,66194.0,66189.0,0.02705438]
[1729710065490,0.238914,66194.0,66190.0,0.075618]
[1729710065890,0.238914,66194.0,66191.0,0.075618]
[1729710066587,0.17,66192.0,66187.0,0.075622]
[1729710066798,0.17,66192.0,66188.0,0.07562]
[1729710066993,0.245618,66192.0,66186.0,0.02746049]
[1729710067189,0.245619,66191.0,66187.0,0.075622]
[1729710067596,0.17,66188.0,66183.0,0.075627]
[1729710067798,0.17,66184.0,66183.0,0.075627]
[1729710068201,0.245626,66184.0,66179.0,0.10323318]
[1729710068503,0.17,66180.0,66177.0,0.075633]
[1729710068697,0.17,66178.0,66174.0,0.00226651]
[1729710068896,0.3232,66183.0,66174.0,0.00226651]
[1729710068897,0.17,66175.0,66174.0,0.00226651]
[1729710069401,0.17,66175.0,66174.0,0.07790351]
[1729710069698,0.17,66175.0,66174.0,0.00226651]
[1729710069902,0.245636,66175.0,66174.0,0.00226651]
[1729710070201,0.20705345,66175.0,66174.0,0.00226651]
[1729710070399,0.17,66175.0,66174.0,0.00226651]
[1729710070713,0.1658,66177.0,66176.0,0.075635]
[1729710071012,0.1658,66177.0,66176.0,0.245635]
[1729710071203,0.3232,66183.0,66182.0,0.075628]
[1729710071500,0.3232,66183.0,66182.0,0.245628]
[1729710072102,0.36024785,66183.0,66182.0,0.245628]
[1729710072700,0.36024748,66183.0,66182.0,0.245628]
[1729710073005,0.3232,66183.0,66182.0,0.245628]
[1729710073304,0.3232,66183.0,66182.0,0.075628]
[1729710074005,0.36024759,66183.0,66182.0,0.075628]
[1729710074308,0.36024759,66183.0,66182.0,0.10264019]
[1729710074906,0.36024759,66183.0,66179.0,0.075631]
[1729710075105,0.245633,66178.0,66173.0,0.075637]
[1729710075311,0.245633,66178.0,66175.0,0.075636]
[1729710075606,0.20021031,66178.0,66177.0,0.07407764]
[1729710075803,0.20021031,66178.0,66176.0,0.14923716]
[1729710075804,0.17,66178.0,66176.0,0.14923716]
[1729710076110,0.17,66178.0,66176.0,0.07360316]
[1729710076310,0.245633,66178.0,66177.0,0.11530208]
[1729710076805,0.17,66178.0,66177.0,0.11530208]
[1729710077012,0.17,66178.0,66177.0,0.19093608]
[1729710077304,0.245633,66178.0,66177.0,0.11530208]
[1729710077507,0.17,66178.0,66177.0,0.19093608]
[1729710077814,0.075631,66180.0,66177.0,0.19093608]
[1729710078000,0.075631,66180.0,66179.0,0.07368425]
[1729710078196,0.075631,66180.0,66179.0,0.11530294]
[1729710078403,0.17,66182.0,66179.0,0.11530294]
[1729710078611,0.17,66182.0,66181.0,0.07369316]
[1729710078809,0.075629,66181.0,66180.0,0.07369316]
[1729710079105,0.075629,66181.0,66180.0,0.18899423]
[1729710079509,0.17,66182.0,66180.0,0.18899423]
[1729710079709,0.3232,66183.0,66182.0,0.075628]
[1729710080015,0.1561,66183.0,66182.0,0.245628]
[1729710080707,0.1561,66183.0,66182.0,0.31932116]
[1729710080910,0.331,66189.0,66182.0,0.24369316]
[1729710080911,0.161,66189.0,66182.0,0.24369316]
[1729710081204,0.161,66189.0,66188.0,0.05895552]
[1729710081406,0.331,66189.0,66185.0,0.075624]
[1729710081798,0.331,66189.0,66184.0,0.07369316]
[1729710081998,0.331,66189.0,66188.0,0.075621]
[1729710084504,0.161,66189.0,66188.0,0.075621]
[1729710084816,0.1529,66195.0,66194.0,0.075614]
[1729710085019,0.1529,66195.0,66194.0,0.11985868]
[1729710085318,0.00226641,66205.0,66204.0,0.075603]
[1729710085612,0.3301,66212.0,66203.0,0.04422985]
[1729710085911,0.2456,66207.0,66206.0,0.0756]
[1729710086120,0.1601,66212.0,66206.0,0.0756]
[1729710086302,0.1601,66212.0,66211.0,0.075595]
[1729710086811,0.1601,66212.0,66204.0,0.04422985]
[1729710086812,0.61318,66212.0,66207.0,0.075599]
[1729710087008,0.245599,66208.0,66204.0,0.07197874]
[1729710087311,0.1601,66212.0,66204.0,0.07197874]
[1729710087312,0.3301,66212.0,66205.0,0.04422985]
[1729710087514,0.075596,66210.0,66208.0,0.075598]
[1729710087712,0.17,66209.0,66208.0,0.075598]
[1729710087911,0.17,66209.0,66206.0,0.04422985]
[1729710088107,0.17,66209.0,66205.0,0.04422985]
[1729710088606,0.075601,66207.0,66205.0,0.04422985]
[1729710088809,0.075601,66206.0,66205.0,0.04422985]
[1729710089007,0.075602,66205.0,66204.0,0.04422985]
[1729710089214,0.245602,66205.0,66204.0,0.04422985]
[1729710089416,0.17,66208.0,66203.0,0.11983285]
[1729710089616,0.075602,66205.0,66204.0,0.04422985]
[1729710089812,0.075602,66205.0,66203.0,0.04422985]
[1729710090218,0.075603,66204.0,66202.0,0.04422985]
[1729710090620,0.075603,66204.0,66202.0,0.11983485]
[1729710090916,0.08346273,66203.0,66202.0,0.075605]
[1729710091717,0.08346273,66203.0,66202.0,0.245605]
[1729710093820,0.08345977,66203.0,66202.0,0.17]
[1729710094007,0.08345977,66203.0,66202.0,0.381485]
[1729710095117,0.15063961,66203.0,66202.0,0.245605]
[1729710095319,0.23409938,66203.0,66202.0,0.245605]
[1729710095514,0.08345977,66203.0,66202.0,0.245605]
[1729710096509,0.13550464,66203.0,66202.0,0.245605]
[1729710096714,0.18192767,66203.0,66202.0,0.245605]
[1729710096921,0.21896441,66203.0,66202.0,0.245605]
[1729710097221,0.21896441,66203.0,66202.0,0.698765]
[1729710097516,0.08345977,66203.0,66202.0,0.860665]
[1729710097718,0.03703674,66203.0,66202.0,0.860665]
[1729710097914,0.03703674,66203.0,66202.0,0.3319]
[1729710097915,0.04641947,66203.0,66202.0,0.3319]
[1729710098115,0.13550464,66205.0,66204.0,0.075603]
[1729710098322,0.08345275,66205.0,66203.0,0.075604]
[1729710098526,0.13546333,66205.0,66204.0,0.075603]
[1729710100311,0.13546333,66205.0,66204.0,0.528763]
[1729710101420,0.13546333,66205.0,66204.0,0.57280328]
[1729710101924,0.17,66218.0,66204.0,0.45316]
[1729710102117,0.245587,66218.0,66212.0,0.075593]
[1729710102916,0.3233,66221.0,66203.0,0.04403659]
[1729710102917,0.3233,66221.0,66216.0,0.075589]
[1729710103121,0.1611,66221.0,66216.0,0.075589]
[1729710103322,0.17,66218.0,66216.0,0.075589]
[1729710103821,0.17,66218.0,66213.0,0.13588]
[1729710104025,0.17,66214.0,66213.0,0.13588]
[1729710104215,0.17,66214.0,66213.0,0.075593]
[1729710104823,0.17,66214.0,66209.0,0.075596]
[1729710104824,0.245592,66214.0,66209.0,0.075596]
[1729710105125,0.17,66210.0,66205.0,0.10285452]
[1729710105323,0.17,66206.0,66205.0,0.10285452]
[1729710105528,0.17,66206.0,66205.0,0.23869452]
[1729710105725,0.17,66210.0,66206.0,0.0756]
[1729710106029,0.17,66210.0,66205.0,0.16309352]
[1729710106030,0.17,66208.0,66207.0,0.075599]
[1729710106325,0.17,66208.0,66205.0,0.02725352]
[1729710106531,0.17,66208.0,66206.0,0.0756]
[1729710107025,0.17,66208.0,66204.0,0.13584]
[1729710107026,0.245599,66208.0,66204.0,0.13584]
[1729710107232,0.17,66205.0,66204.0,0.075603]
[1729710108127,0.3151,66207.0,66204.0,0.075603]
[1729710108331,0.3151,66207.0,66206.0,0.075601]
[1729710108630,0.3151,66207.0,66201.0,0.19747689]
[1729710108931,0.3151,66207.0,66203.0,0.075603]
[1729710109230,0.3151,66207.0,66204.0,0.075603]
[1729710110021,0.17,66205.0,66204.0,0.075603]
[1729710112925,0.17,66205.0,66201.0,0.10308289]
[1729710113226,0.17,66205.0,66201.0,0.075606]
[1729710113227,0.17,66202.0,66201.0,0.075606]
[1729710113430,0.245605,66202.0,66200.0,0.02717043]
[1729710113732,0.17,66202.0,66195.0,0.13584]
[1729710113930,0.17,66202.0,66195.0,0.10222671]
[1729710113931,0.075606,66201.0,66195.0,0.10222671]
[1729710114119,0.075606,66201.0,66198.0,0.075609]